[Event "1st Semana Santa Torrevieja 2022"]
[Site "Torrevieja Alicante"]
[Date "2022.04.14"]
[Round "2.6"]
[White "Dardha, Daniel"]
[Black "Neagu, Roberto Florin"]
[Result "1-0"]
[ECO "A50"]
[WhiteElo "2541"]
[BlackElo "2092"]
[Annotator "TA"]
[PlyCount "87"]
[EventDate "2022.04.12"]
[EventType "swiss"]
[EventCountry "ESP"]
[SourceTitle "playchess.com"]
[Source "ChessBase"]
[SourceQuality "1"]
[TimeControl "5400+30"]

{[%evp 9,87,8,13,0,0,0,0,0,35,17,22,19,23,19,26,-33,12,28,67,66,68,66,80,54,64,51,39,53,75,53,99,22,28,22,72,77,60,35,82,81,81,54,65,4,36,0,0,0,8,0,0,0,0,0,0,0,0,0,58,54,256,257,239,262,282,312,330,342,360,333,339,235,248,215,191,0,335,319,515,515]} 1. d4 {[%emt 0:00:07]} Nf6 {[%emt 0:00:12]} 2. c4 {[%emt 0:00:05]} e6 {[%emt 0:00:08]} 3. Bf4 {[%emt 0:00:07]} d5 {[%emt 0:01:23]} 4. cxd5 {[%emt 1:32:11]} exd5 {[%emt 0:00:28]} 5. e3 {[%emt 0:00:06]} Bd6 {[%emt 0:04:13]} 6. Bg3 {[%emt 0:00:42] A50: Queen's Fianchetto Defence (1 d4 Nf6 2 c4 b6).} O-O {[%emt 1:27:06]} 7. Nc3 {[%emt 0:00:08]} Re8 {[%emt 0:00:59]} 8. Bd3 {[%emt 0:00:51] [#] The position is equal.} Bf8 $146 {[%emt 0:13:37]} ({Predecessor:} 8... Bg4 9. Nge2 Bxg3 10. hxg3 Nc6 11. Rc1 Nb4 12. Bb1 Qd7 13. Qb3 Nc6 14. Kf1 Na5 {½-½ (45) Budding,A (2060)-Ryder,A (2163) ICCF email 2016}) 9. Nge2 {[%emt 1:30:33]} a6 {[%emt 0:00:30]} 10. Qc2 {[%emt 0:01:59]} c6 {[%emt 0:05:21]} 11. Bh4 {[%emt 0:01:22][%cal Od3h7] With the idea Bxh7+!} h6 {[%emt 0:00:59]} 12. O-O-O {[%emt 0:03:15]} (12. O-O $11) 12... Be6 {[%emt 0:08:26]} 13. Nf4 {[%emt 0:03:00]} Nbd7 {[%emt 0:02:01]} 14. Nxe6 {[%emt 0:00:49] &Bianco is more active.} Rxe6 {[%emt 0:57:58] [#]} 15. Bh7+ $1 {[%emt 0:00:39]} Kh8 {[%emt 0:00:23]} 16. Bf5 {[%emt 0:00:06]} Re7 {[%emt 0:00:57]} 17. g4 {[%emt 0:02:35]} g6 $1 {[%emt 0:02:58]} 18. Bd3 {[%emt 0:09:09]} Re8 {[%emt 0:04:09]} 19. Kb1 {[%emt 0:00:20]} Be7 {[%emt 0:03:22]} (19... Bb4 $14) 20. h3 {[%emt 1:12:03]} (20. f3 $16) 20... Ne4 $11 {[%emt 0:01:27]} 21. Bxe7 {[%emt 0:01:18]} Qxe7 {[%emt 0:00:34]} (21... Nxc3+ $11 {keeps the balance.} 22. bxc3 Qxe7) 22. Bxe4 $16 {[%emt 0:02:33]} dxe4 {[%emt 0:00:04]} 23. h4 {[%emt 1:02:42]} Rad8 {[%emt 0:07:51]} (23... Rac8 $1 $14) 24. g5 {[%emt 0:05:36] Hoping for h5.} h5 {[%emt 0:01:12]} 25. Qb3 {[%emt 0:02:53] Prevents Nb6.} Kg7 {[%emt 0:07:35]} 26. Rhf1 {[%emt 0:07:14]} (26. Qxb7 Rb8 27. Qc7 (27. Qxc6 $2 Rec8 $19) (27. Qxa6 Qb4 $17) 27... Qa3 $11) (26. Ne2 $14) 26... b5 {[%emt 0:06:52]} 27. Ne2 {[%emt 0:02:48]} (27. d5 $5 {[%cal Rd5c6]}) 27... Nb6 {[%emt 0:01:09]} 28. Rc1 {[%emt 0:02:00]} Rc8 {[%emt 0:05:13]} (28... Nc4 29. Qc3 $16) 29. Nf4 {[%emt 0:01:43]} c5 {[%emt 0:03:14]} (29... Nc4 30. Qc3 $14) 30. dxc5 {[%emt 0:03:37]} Rxc5 {[%emt 0:00:15]} 31. Rxc5 {[%emt 0:01:42]} Qxc5 {[%emt 0:00:09]} 32. Rd1 {[%emt 0:00:17]} Rc8 {[%emt 0:02:24]} 33. a3 {[%emt 0:01:30]} Qe5 {[%emt 0:04:11]} (33... a5 $11) 34. Qb4 $14 {[%emt 0:02:36]} Rc4 $2 {[%emt 0:04:14]} (34... Nc4 $14) 35. Qd6 $18 {[%emt 0:02:09] The board is on fire.} Qxd6 {[%emt 0:03:33]} 36. Rxd6 {[%emt 0:34:35][%mdl 4096] Endgame KRN-KRN} Nc8 {[%emt 0:00:20]} 37. Rxa6 {[%emt 0:34:58]} Ne7 {[%emt 0:01:39]} 38. Ra7 {[%emt 0:00:29]} Kf8 {[%emt 0:02:10]} 39. Ra8+ {[%emt 0:34:44]} Kg7 {[%emt 0:00:06]} 40. Re8 {[%emt 0:00:37]} Rc7 {[%emt 0:00:05]} 41. Rb8 {[%emt 0:00:46]} Rc5 {[%emt 0:00:06] [#]} 42. Re8 $2 {[%emt 0:03:17]} ({Resist} 42. Rb7 $6 Re5 $16) (42. b4 $1 $18 {[%cal Rb4c5]} Re5 43. Re8) 42... Nf5 $2 {[%emt 0:01:19][%mdl 8192] [#]} (42... Rc7 $11) 43. b4 $1 {[%emt 0:00:39]} (43. Rxe4 Nxh4 44. Nxh5+ gxh5 45. Rxh4 Rxg5 $16) 43... Rc7 {[%emt 0:01:05]} (43... Rc6 44. Nd5 (44. Rxe4 Nxh4 45. Re5 Rb6 $16) 44... f6 45. gxf6+ (45. Nxf6 Nxh4 46. Rb8 Nf3 $18) 45... Kf7 46. Rxe4 Ra6) 44. Nd5 {[%emt 0:30:51] Weighted Error Value: White=0.21 (precise) /Black=0.46} 1-0

[Event "1st Semana Santa Torrevieja 2022"]
[Site "Torrevieja Alicante"]
[Date "2022.04.14"]
[Round "2.7"]
[White "Bravo De La Vega, Alvaro"]
[Black "Chatalbashev, Boris"]
[Result "1-0"]
[ECO "B06"]
[WhiteElo "2057"]
[BlackElo "2515"]
[Annotator "TA"]
[PlyCount "37"]
[EventDate "2022.04.12"]
[EventType "swiss"]
[EventCountry "ESP"]
[SourceTitle "playchess.com"]
[Source "ChessBase"]
[SourceQuality "1"]
[TimeControl "5400+30"]

{[%evp 9,37,25,50,0,2,2,0,0,60,33,52,0,0,0,0,0,0,0,-12,0,0,0,0,0,0,0,20,0,4,0]} 1. e4 {[%emt 0:00:03]} g6 {[%emt 0:00:07]} 2. d4 {[%emt 0:00:08]} Bg7 {[%emt 0:00:05]} 3. Nc3 {[%emt 0:00:12]} c6 {[%emt 0:00:07]} 4. Nf3 {[%emt 0:00:27]} d6 {[%emt 0:00:28]} 5. Be3 {[%emt 0:01:09]} Qb6 {[%emt 0:00:45]} 6. Qd2 {[%emt 0:05:32] B06: Modern Defence.} (6. a3 $14) 6... Qxb2 $11 {[%emt 0:00:28]} 7. Rb1 {[%emt 0:00:08]} Qa3 {[%emt 0:00:02]} 8. Bc4 {[%emt 0:01:33]} Nf6 {[%emt 0:04:52]} ({Black should try} 8... Nd7 $11) 9. e5 $14 {[%emt 0:11:08]} Ng4 {[%emt 0:01:39][%cal Rd6e5]} 10. exd6 {[%emt 0:20:13] [#]} (10. Rb3 $14 Qa5 11. exd6) 10... Qxd6 $146 {[%emt 0:06:37] The position is equal.} ({Predecessor:} 10... Nxe3 11. fxe3 Qxd6 12. Ne4 Qd8 13. Nfg5 O-O 14. O-O e6 15. Qf2 Qe7 16. Qg3 b5 {½-½ (71) Sieber,F (2225)-Yoseph,T (2455) Sitges 2021}) 11. Bf4 {[%emt 0:02:38]} Qd8 {[%emt 0:00:07]} 12. h3 {[%emt 0:01:45]} Nf6 {[%emt 0:00:15]} 13. O-O {[%emt 0:05:44]} O-O {[%emt 0:00:41]} 14. a4 {[%emt 0:01:34]} Nbd7 {[%emt 0:01:16]} 15. Rfe1 {[%emt 0:06:36]} Nb6 {[%emt 0:06:13]} 16. Bf1 {[%emt 0:01:03]} Nbd5 {[%emt 0:02:46]} 17. Nxd5 {[%emt 0:01:46]} cxd5 {[%emt 0:00:43]} 18. Bd3 {[%emt 0:01:16]} b6 {[%emt 0:01:54]} 19. Qb4 {[%emt 0:01:07][%mdl 32768] Weighted Error Value: White=0.08 (flawless) /Black=0.11 (very precise) . Loss on time!?} 1-0

[Event "1st Semana Santa Torrevieja 2022"]
[Site "Torrevieja Alicante"]
[Date "2022.04.14"]
[Round "2.9"]
[White "Moreno Alcaraz, Jose Javier"]
[Black "Vasquez Schroeder, Rodrigo"]
[Result "1-0"]
[ECO "B56"]
[WhiteElo "2080"]
[BlackElo "2493"]
[Annotator "TA"]
[PlyCount "101"]
[EventDate "2022.04.12"]
[EventType "swiss"]
[EventCountry "ESP"]
[SourceTitle "playchess.com"]
[Source "ChessBase"]
[SourceQuality "1"]
[TimeControl "5400+30"]

{[%evp 19,101,24,28,25,29,18,13,16,16,9,16,0,24,0,0,0,8,0,0,10,0,0,15,0,0,0,50,49,95,95,150,0,92,0,94,94,98,22,30,28,28,28,27,23,25,0,25,0,0,0,0,0,0,0,0,0,0,-6,0,0,0,-568,-568,-551,-8,-11,-11,-11,-11,-11,-11,-11,-11,-11,0,0,0,0,0,0,0,0,18,8]} 1. e4 {[%emt 0:00:01]} c5 {[%emt 0:00:11]} 2. Nf3 {[%emt 0:00:06]} d6 {[%emt 0:00:04]} 3. d4 {[%emt 0:00:12]} cxd4 {[%emt 0:00:06]} 4. Nxd4 {[%emt 0:00:02]} Nf6 {[%emt 0:00:08]} 5. Nc3 {[%emt 0:00:07]} Nc6 {[%emt 0:00:05]} 6. f3 {[%emt 0:02:00]} e5 {[%emt 0:00:08]} 7. Nb3 {[%emt 0:00:58]} Be7 {[%emt 0:00:15]} 8. Be3 {[%emt 0:00:16]} Be6 {[%emt 0:00:10]} 9. Nd5 {[%emt 0:00:15]} Bxd5 {[%emt 0:00:18]} 10. exd5 {[%emt 0:00:18]} Nb4 {[%emt 0:00:08] The main line 10...Nb4 scores better than 10...Nb8.} 11. c4 $1 {[%emt 0:05:03] B56: Classical Sicilian: Unusual Lines.} a5 {[%emt 0:00:09]} 12. a3 {[%emt 0:08:15]} Na6 {[%emt 0:00:15]} 13. Bd3 {[%emt 0:00:07]} O-O {[%emt 0:01:44]} 14. O-O {[%emt 0:00:06]} Nd7 {[%emt 0:00:38]} 15. Qc2 {[%emt 0:18:50] [#]} h6 $146 {[%emt 0:02:06]} ({Predecessor:} 15... g6 16. g3 f5 17. Rae1 a4 18. Nd2 Nac5 19. Be2 Qa5 20. Kh1 Rfc8 {1-0 (35) Pitra,A (2213)-Peng,X (2424) Bangkog 2018}) 16. Nd2 {[%emt 0:01:38]} Bg5 {[%emt 0:01:15]} 17. Bf2 {[%emt 0:00:19]} Bxd2 {[%emt 0:09:19]} 18. Qxd2 {[%emt 0:00:16]} Nac5 {[%emt 0:00:17]} 19. Bc2 {[%emt 0:03:15] Prevents Nb3.} a4 {[%emt 0:00:09]} 20. f4 {[%emt 0:07:33]} Qa5 {[%emt 0:00:59]} 21. Qe2 {[%emt 0:04:00]} Rae8 {[%emt 0:09:54]} 22. Rae1 {[%emt 0:08:44]} Qd8 {[%emt 0:06:00]} (22... e4 $11) 23. Qh5 {[%emt 0:06:09]} Nf6 {[%emt 0:09:58]} (23... Qa5 $14 {feels stronger.}) 24. Qh4 {[%emt 0:04:04] [#] And now Bxc5 would win.} Nfd7 {[%emt 0:05:53]} (24... exf4 $142 25. Bd4 (25. Qxf4 Rxe1 26. Rxe1 Re8 $16) 25... Rxe1 26. Qxe1 (26. Rxe1 Re8 $14) 26... Nfd7) 25. Qh5 {[%emt 0:01:15] &Bianco is more active.} ({White should play} 25. Qxd8 Rxd8 26. Bxc5 Nxc5 27. fxe5) 25... Nf6 $16 {[%emt 0:12:32]} 26. Qh4 {[%emt 0:00:45]} (26. Qf5 $16 e4 27. Bxc5 dxc5 28. Bxa4 (28. Bxe4 $2 g6 $19)) 26... exf4 {[%emt 0:06:53]} (26... Nfd7 $1 $11) 27. Qxf4 {[%emt 0:08:51]} Rxe1 {[%emt 0:01:20]} 28. Bxe1 {[%emt 0:02:46]} ({Better is} 28. Rxe1 $16 Re8 29. Rxe8+ Qxe8 30. Qxd6) 28... Qb6 {[%emt 0:03:06]} 29. Qd4 {[%emt 0:02:56] Threatens to win with Rxf6.} Nfd7 {[%emt 0:03:12][%cal Bf6d7,Bd7e5,Be5c4][%mdl 32]} 30. Kh1 {[%emt 0:01:26]} Ne5 {[%emt 0:02:04]} 31. Bb4 {[%emt 0:03:13]} Rc8 {[%emt 0:04:23]} 32. Bf5 {[%emt 0:02:15] A strong pair of Bishops.} Re8 {[%emt 0:01:54]} 33. Re1 {[%emt 0:00:29]} Qd8 {[%emt 0:03:03]} 34. Bxc5 {[%emt 0:03:17]} dxc5 {[%emt 0:00:06]} 35. Qxc5 {[%emt 0:00:02]} Nxc4 {[%emt 0:01:17]} 36. Re4 {[%emt 0:05:29]} Rxe4 {[%emt 0:02:18]} 37. Bxe4 {[%emt 0:00:01]} Nd6 {[%emt 0:00:17]} 38. Bd3 {[%emt 0:00:51]} Qf6 {[%emt 0:01:45][%cal Of6b2]} 39. h3 $1 {[%emt 0:01:04]} g6 {[%emt 0:00:24]} 40. Qc3 $2 {[%emt 0:01:18][%mdl 8192]} (40. Bc2 $11) 40... Qxc3 $19 {[%emt 0:04:18]} 41. bxc3 {[%emt 0:00:00][%cal Bb2c3,Bc3c4][%mdl 4128] Endgame [#] KB-KN} Kg7 $2 {[%emt 0:00:09]} (41... b5 $1 $19 42. Kh2 Kg7) 42. c4 $1 $11 {[%emt 0:01:12] c5 is the strong threat. The position is equal.} b6 {[%emt 0:00:06]} 43. Kg1 $1 {[%emt 0:00:50]} Kf6 {[%emt 0:00:02] Black wants to play ...Ke5.} 44. Kf2 {[%emt 0:00:07]} Ke5 {[%emt 0:00:06] White should prevent ...Kd4.} 45. Ke3 {[%emt 0:00:31]} f5 {[%emt 0:00:45]} 46. Be2 {[%emt 0:00:49]} g5 {[%emt 0:01:10]} 47. Kd3 $1 {[%emt 0:00:56]} Ne4 {[%emt 0:06:15]} 48. Bf3 {[%emt 0:00:34]} Nf6 {[%emt 0:03:22]} 49. Bd1 {[%emt 0:00:47]} Ne4 {[%emt 0:01:24] White must now prevent ...Nf2+.} 50. Bf3 {[%emt 0:00:04]} Nc5+ {[%emt 0:01:51]} 51. Kc3 {[%emt 0:00:01][%mdl 32768] Weighted Error Value: White=0.30/Black=0.25 (precise) . Sensor Board Error (Ke4/e5)?} 1-0

[Event "1st Semana Santa Torrevieja 2022"]
[Site "Torrevieja Alicante"]
[Date "2022.04.14"]
[Round "2.10"]
[White "Sochacki, Christophe"]
[Black "Abrisqueta Zudaire, Leyre"]
[Result "1-0"]
[ECO "A11"]
[WhiteElo "2485"]
[BlackElo "2086"]
[Annotator "TA"]
[PlyCount "99"]
[EventDate "2022.04.12"]
[EventType "swiss"]
[EventCountry "ESP"]
[SourceTitle "playchess.com"]
[Source "ChessBase"]
[SourceQuality "1"]
[TimeControl "5400+30"]

{[%evp 11,99,0,0,0,12,-28,25,38,81,81,82,79,81,63,70,60,70,39,61,58,125,131,138,111,140,114,104,111,118,108,246,244,227,235,243,197,287,265,270,271,262,288,318,216,200,150,231,227,217,208,220,221,251,255,264,266,286,286,339,285,279,279,955,894,753,339,704,284,775,753,1735,1552,1666,1585,5822,5409,5422,5722,29978,5722,29974,29970,29983,29984,29984,29985,29986,29985,29988,29986]} 1. Nf3 {[%emt 0:02:45]} d5 {[%emt 0:01:12]} 2. e3 {[%emt 0:01:27]} e6 {[%emt 0:01:27]} 3. c4 {[%emt 0:00:46]} c6 {[%emt 0:00:07]} 4. b3 {[%emt 0:00:33]} Nf6 {[%emt 0:00:44]} 5. Bb2 {[%emt 0:00:06]} Bd6 {[%emt 0:00:25]} 6. Nc3 {[%emt 0:00:08]} Nbd7 {[%emt 0:00:07]} 7. Qc2 {[%emt 0:00:36] A11: English Opening: 1...c6.} Qe7 {[%emt 0:00:54]} 8. Rg1 {[%emt 0:06:02]} a6 {[%emt 0:09:20]} (8... e5 $142) 9. g4 $1 $11 {[%emt 0:01:03][%cal Bg2g4,Bg4g5][%mdl 32] White has an edge.} Ne5 {[%emt 0:04:43]} 10. Nxe5 {[%emt 0:00:47]} Bxe5 {[%emt 0:00:02]} 11. g5 {[%emt 0:11:57]} Nd7 {[%emt 0:07:48] [#]} 12. O-O-O $146 {[%emt 0:00:51][%cal Be1c1,Bc1b2,Bb2a1][%mdl 32]} ({Predecessor:} 12. h4 d4 13. Ne4 dxe3 14. dxe3 Bxb2 15. Qxb2 e5 16. O-O-O O-O 17. Qc2 f5 18. gxf6 Nxf6 {0-1 (68) Maslik,M (2341)-Obona,J (2209) Slovakia 2015}) 12... b5 {[%emt 0:12:16]} 13. f4 {[%emt 0:13:31]} Bd6 {[%emt 0:02:24]} 14. d4 {[%emt 0:04:45]} bxc4 {[%emt 0:01:45]} 15. bxc4 {[%emt 0:00:05]} Ba3 {[%emt 0:03:49]} (15... dxc4 $14 16. Ne4 (16. Bxc4 Rb8 $14) 16... Ba3) 16. c5 $36 {[%emt 0:00:20][%mdl 2048] White is really pushing.} Bxb2+ {[%emt 0:00:15]} 17. Kxb2 {[%emt 0:01:06]} (17. Qxb2 $6 h6 $14) 17... a5 {[%emt 0:00:27]} 18. Qa4 {[%emt 0:06:43] &Bianco is much more active.} Nb8 {[%emt 0:01:01]} 19. Ka1 {[%emt 0:05:52]} Qc7 {[%emt 0:00:42]} 20. Rb1 {[%emt 0:00:30]} Ba6 {[%emt 0:00:27] [#] This move loses the game for Black.} (20... O-O $16 {was worth a try.}) 21. Rxb8+ $1 $18 {[%emt 0:04:25][%mdl 512]} Rxb8 {[%emt 0:01:03]} 22. Bxa6 {[%emt 0:00:03]} Rb4 {[%emt 0:00:45]} 23. Qc2 {[%emt 0:00:47]} Qa7 {[%emt 0:00:48]} (23... a4 {keeps fighting.} 24. Bd3 (24. Nxa4 Qa5 $17) 24... a3) 24. Bd3 {[%emt 0:00:37] And now Na4 would win.} a4 {[%emt 0:02:45]} 25. Rb1 {[%emt 0:04:55]} (25. Bxh7 g6 $16) 25... Rxb1+ {[%emt 0:01:57]} 26. Qxb1 {[%emt 0:00:55]} O-O {[%emt 0:01:32]} 27. Qb6 {[%emt 0:05:42] Inhibits Qa5.} Qa8 {[%emt 0:03:10]} 28. Qa6 {[%emt 0:02:55]} a3 {[%emt 0:00:48] [#]} (28... Qxa6 $16 29. Bxa6 Rb8) 29. Qxa8 $1 {[%emt 0:00:23]} Rxa8 {[%emt 0:00:03]} 30. Bc2 {[%emt 0:00:42]} Kf8 {[%emt 0:00:43]} 31. Ba4 {[%emt 0:00:33]} ({Stronger than} 31. Bxh7 g6 32. Bxg6 fxg6 $17) 31... Ra6 {[%emt 0:00:07]} 32. Kb1 {[%emt 0:00:06]} Ke7 {[%emt 0:00:11]} 33. Kc2 {[%emt 0:00:02]} Kd7 {[%emt 0:00:16]} 34. Kb3 {[%emt 0:00:07]} h6 {[%emt 0:00:07]} 35. h4 {[%emt 0:01:09]} ({Not} 35. Kxa3 hxg5 36. fxg5 Ra8 $16) 35... hxg5 {[%emt 0:00:07]} 36. hxg5 {[%emt 0:00:01]} ({Weaker is} 36. fxg5 Ra8 $14) 36... f6 $2 {[%emt 0:00:11]} (36... Ra8 37. Kxa3 Rh8) 37. gxf6 {[%emt 0:00:20]} gxf6 {[%emt 0:00:02]} 38. Kxa3 {[%emt 0:00:19]} (38. f5 $142 Ke7 39. fxe6) 38... Ra8 $2 {[%emt 0:01:06]} (38... f5 39. Ne2 Ra8) 39. Kb3 {[%emt 0:00:18]} (39. f5 $142 Re8 40. fxe6+ Rxe6 41. Nxd5) 39... Rh8 $2 {[%emt 0:00:09]} (39... Kc7 40. Kc2 Rg8) 40. f5 {[%emt 0:02:43]} exf5 {[%emt 0:01:09]} 41. Nxd5 {[%emt 0:00:10]} Rh3 {[%emt 0:00:13]} 42. Kc4 {[%emt 0:01:15]} Rh2 {[%emt 0:00:38]} 43. Nb4 {[%emt 0:00:52]} Rh3 {[%emt 0:00:19]} 44. Bxc6+ {[%emt 0:00:07]} Kc7 {[%emt 0:00:04]} 45. a4 {[%emt 0:00:19]} (45. Bb5 $142 Kb8 46. Nd5 Rh2 47. c6 Ka7 48. c7 Rh8 49. Kc5 Rf8 50. a4) 45... Kb8 {[%emt 0:01:00]} 46. Nd5 {[%emt 0:00:15] White mates.} Rh1 {[%emt 0:00:14]} 47. Bd7 {[%emt 0:00:36]} Rc1+ {[%emt 0:00:12]} 48. Kb5 {[%emt 0:00:02]} Rb1+ {[%emt 0:00:08]} 49. Kc6 {[%emt 0:00:06]} Ra1 {[%emt 0:00:08]} 50. Kd6 {[%emt 0:00:04] Weighted Error Value: White=0.45/Black=0.68} 1-0

[Event "1st Semana Santa Torrevieja 2022"]
[Site "Torrevieja Alicante"]
[Date "2022.04.14"]
[Round "2.11"]
[White "Calvo Gonzalez, Jose Felix"]
[Black "Cabrera, Alexis"]
[Result "1-0"]
[ECO "A36"]
[WhiteElo "2071"]
[BlackElo "2482"]
[Annotator "TA"]
[PlyCount "110"]
[EventDate "2022.04.12"]
[EventType "swiss"]
[EventCountry "ESP"]
[SourceTitle "playchess.com"]
[Source "ChessBase"]
[SourceQuality "1"]
[TimeControl "5400+30"]

{[%evp 16,110,10,10,5,0,22,20,24,16,18,25,29,10,46,-66,-69,-67,-64,-66,-72,-70,-68,-57,-37,-38,-32,-40,-33,-43,-26,-39,-39,-40,-35,-48,-40,-40,-39,-50,-33,-39,-46,-60,-54,-47,-31,-48,-35,-63,-63,-128,-47,-47,-47,-55,-73,-81,-70,-118,-50,-78,-27,-47,-48,-74,-66,-74,-74,-74,-74,-154,-154,-154,-154,-154,-154,-186,-186,-242,-242,-277,-275,-437,-266,-384,-298,-290,-282,-251,-250,-327,-304,-358,-348,-976,-775]} 1. c4 {[%emt 0:00:03]} g6 {[%emt 0:16:33]} 2. g3 {[%emt 0:00:17]} Bg7 {[%emt 0:00:04]} 3. Bg2 {[%emt 0:00:07]} e5 {[%emt 0:00:13]} 4. e4 {[%emt 0:01:34]} d6 {[%emt 0:00:05]} 5. Nc3 {[%emt 0:00:19]} Ne7 {[%emt 0:00:05]} 6. Nge2 {[%emt 0:00:47]} c5 {[%emt 0:00:03]} 7. d3 {[%emt 0:02:07]} Nbc6 {[%emt 0:00:38]} 8. O-O {[%emt 0:03:00]} O-O {[%emt 0:01:12]} 9. a3 {[%emt 0:02:09]} Be6 {[%emt 0:02:36] A36: Symmetrical English vs ...g6: 4 Bg2 Bg7.} 10. Nd5 {[%emt 1:25:07] [#]} a6 $146 {[%emt 0:03:44]} ({Predecessor:} 10... a5 11. Be3 h6 12. Rb1 Kh7 13. h3 Bxd5 14. cxd5 Nd4 15. Bxd4 exd4 16. f4 f5 17. g4 {0-1 (27) Funkschmidt,K-Zweschper,E (2018) Bad Homburg 2018}) 11. b4 {[%emt 0:00:00]} b5 {[%emt 0:07:20] The position is equal.} 12. bxc5 {[%emt 0:00:00]} dxc5 {[%emt 0:02:47]} 13. Be3 {[%emt 0:00:00]} Nd4 {[%emt 0:02:33]} 14. Rc1 {[%emt 0:00:00]} Rb8 {[%emt 0:06:36]} (14... Bg4 {keeps more tension.} 15. f3 Bd7 16. Nxd4 exd4 17. Bf4 Nxd5 18. cxd5 Qb6) 15. cxb5 {[%emt 0:00:00]} (15. Nxd4 $14 cxd4 16. Bd2) 15... Nxd5 $15 {[%emt 0:04:52]} 16. exd5 {[%emt 0:00:00]} Bxd5 {[%emt 0:00:08]} 17. Rxc5 {[%emt 0:00:00]} Bxg2 {[%emt 0:03:43]} 18. Kxg2 {[%emt 0:00:00]} Ne6 {[%emt 0:00:51]} 19. Rc1 {[%emt 0:00:00]} ({Not} 19. bxa6 $2 Nxc5 20. a7 Qd5+ 21. Kg1 Rbd8 $19) 19... Qd5+ {[%emt 0:13:21]} 20. Kg1 {[%emt 0:00:00]} axb5 {[%emt 0:00:06]} ({Don't do} 20... Rxb5 21. Nc3 Qd6 22. Nxb5 axb5 23. Qb3 $18) 21. Nc3 {[%emt 0:00:00]} Qd7 {[%emt 0:00:04]} 22. Ne4 {[%emt 0:00:00]} Rfd8 {[%emt 0:03:35]} 23. Nc5 {[%emt 0:00:00]} Nxc5 {[%emt 0:01:06]} 24. Rxc5 {[%emt 0:00:00]} Qf5 {[%emt 0:19:19]} 25. Qb1 {[%emt 0:00:00]} (25. d4 Qd7 26. d5 Bf8 $17) 25... Qxd3 {[%emt 0:00:04]} ({Don't play} 25... Rxd3 26. Rxb5 Rxb5 27. Qxb5 $11) 26. Qxd3 {[%emt 0:00:00]} Rxd3 {[%emt 0:00:04]} 27. Rb1 {[%emt 0:00:00][%cal Oa3a4]} Rxa3 {[%emt 0:00:06]} 28. Rbxb5 {[%emt 0:00:00]} Raa8 {[%emt 0:01:03]} 29. Kg2 {[%emt 0:00:00]} Rxb5 {[%emt 0:00:56]} 30. Rxb5 {[%emt 0:00:00][%mdl 4096] Endgame KRB-KRB} Re8 {[%emt 0:00:03]} 31. Rb7 {[%emt 0:00:00]} f6 {[%emt 0:00:47]} 32. Ba7 {[%emt 0:00:00]} Bf8 {[%emt 0:00:07]} 33. Rb8 {[%emt 0:00:00]} (33. Kf3 $15) 33... Re7 {[%emt 0:00:47]} (33... Rxb8 $17 34. Bxb8 Bc5) 34. Bc5 {[%emt 0:00:00]} Rf7 {[%emt 0:00:04]} 35. Ra8 {[%emt 0:05:13]} Kg7 {[%emt 0:00:06]} 36. Be3 {[%emt 0:01:20]} Bd6 {[%emt 0:00:45]} 37. Ra7 {[%emt 0:00:16]} (37. Ra6 $15 Rd7 38. Kf3) 37... Bc7 {[%emt 0:02:36]} (37... Rxa7 $17 38. Bxa7 Kf7) 38. h4 {[%emt 0:02:36]} Kf8 {[%emt 0:01:05]} ({Black should play} 38... h5 $17) 39. h5 {[%emt 0:01:27]} gxh5 {[%emt 0:02:06]} 40. Kh3 {[%emt 0:01:17]} Kg7 $1 {[%emt 0:00:10] Black keeps a firm grip on the game.} 41. Kh4 {[%emt 0:01:09] [#]} Kg6 $1 {[%emt 0:00:05]} 42. Ra8 {[%emt 0:00:24] Inhibits Bd8.} Rg7 {[%emt 0:01:17]} 43. Ra7 {[%emt 0:00:43]} ({Better is} 43. Bc5) 43... Rd7 $17 {[%emt 0:01:11]} 44. Ra8 {[%emt 0:01:48]} Bd8 {[%emt 0:01:04]} 45. Kh3 {[%emt 0:00:40]} Rd6 {[%emt 0:02:58]} 46. Rb8 {[%emt 0:00:25]} f5 {[%emt 0:00:49][%cal Oh5h4]} 47. Bc5 {[%emt 0:00:33]} (47. Rb5 $142) 47... Rd3 $19 {[%emt 0:00:26]} 48. Bb6 {[%emt 0:00:26]} Bf6 {[%emt 0:00:37] Strongly threatening ...h4.} 49. Kg2 {[%emt 0:00:32]} (49. Bc7 {was necessary.}) 49... h4 {[%emt 0:00:20]} 50. gxh4 {[%emt 0:00:28]} (50. Rg8+ {might work better.} Kf7 51. Ra8) 50... Bxh4 {[%emt 0:00:06]} 51. Rg8+ {[%emt 0:00:32]} Kf7 {[%emt 0:00:30]} 52. Rh8 {[%emt 0:00:24] [#]} Kg7 {[%emt 0:00:09]} 53. Re8 {[%emt 0:01:17]} Bf6 {[%emt 0:00:17]} 54. Bc7 {[%emt 0:00:00]} h5 {[%emt 0:00:22]} 55. Bxe5 $2 {[%emt 0:00:21]} (55. f3) 55... Kf7 {[%emt 0:00:33][%mdl 32768] Weighted Error Value: White=0.34/Black=0.14 (very precise) . Sensor Board Error (Ke4/e5)?} 1-0